lending/lending_fUSD_20250508
["ID","MTS","AMOUNT","RATE_DAILY","PERIOD"]
[360260249,1746670258524,-720.35,0.00019999,2]
[360260250,1746670258534,-720.35,0.00019999,2]
[360260251,1746670258544,-720.35,0.00019999,2]
[360260252,1746670258553,-720.35,0.00019999,2]
[360260253,1746670258562,-720.35,0.00019999,2]
[360260254,1746670258572,-720.35,0.00019999,2]
[360260255,1746670258581,-720.35,0.00019999,2]
[360260256,1746670258591,-720.35,0.00019999,2]
[360260257,1746670258601,-2923.2020902,0.0002,2]
[360260258,1746670258616,-6805.95929434,0.0002,2]
[360260260,1746670310092,165.050811,0.0003,30]
[360260261,1746670340548,500.0,0.00029589,30]
[360260262,1746670340806,500.0,0.00029863,35]
[360260263,1746670372676,1000.0,0.000192,2]
[360260269,1746670384726,500.0,0.00029589,30]
[360260278,1746670385315,500.0,0.00029863,30]
[360260282,1746670387556,370.618765,7.945e-05,2]
[360260283,1746670449749,500.0,0.0003,30]
[360260284,1746670456860,385.69140722,0.0003013,120]
[360260285,1746670486015,3379.21406726,0.00019222,2]
[360260286,1746670486038,4749.83283226,0.00019222,2]
[360260287,1746670486063,4749.83283226,0.00019222,2]
[360260288,1746670486086,4749.83283226,0.00019222,2]
[360260289,1746670486108,4749.83283226,0.00019222,2]
[360260290,1746670486130,4749.83283226,0.00019222,2]
[360260291,1746670486153,4749.83283226,0.00019222,2]
[360260292,1746670486174,4749.83283226,0.00019222,2]
[360260293,1746670486196,4749.83283226,0.00019222,2]
[360260294,1746670486217,4749.83283226,0.00019222,2]
[360260295,1746670486241,42606.1204424,0.00019222,2]
[360260296,1746670492711,289.777,0.000195,2]
[360260297,1746670545182,250.0,0.00017,2]
[360260298,1746670546257,300.0,0.00019,2]
[360260299,1746670599889,200.0,0.0003,30]
[360260300,1746670751991,500.0,0.0003,30]
[360260301,1746670905023,150.0,0.00018986,7]
[360260302,1746670939070,3450.0,0.00018965,2]
[360260303,1746670939094,4000.0,0.00018965,2]
[360260304,1746670939116,4000.0,0.00018965,2]
[360260305,1746670939139,4000.0,0.00018965,2]
[360260306,1746670939162,4000.0,0.00018965,2]
[360260307,1746670939185,4000.0,0.00018965,2]
[360260308,1746670939211,450.0,0.00018965,2]
[360260310,1746670962450,1000.0,0.00030137,120]
[360260311,1746670976790,392.87,0.00018965,2]
[360260312,1746670985310,331.68349202,0.0003,30]
[360260329,1746671056806,150.0,0.0003,30]
[360260332,1746671234491,201394.22361696,0.0002301,120]
[360260333,1746671270316,500.0,0.00029589,30]
[360260334,1746671270576,500.0,0.00029863,30]
[360260340,1746671400239,441.81,0.00017082,2]
[360260341,1746671400448,441.81,0.00019346,2]
[360260342,1746671408255,1000.0,0.00018986,2]
[360260343,1746671423435,150.0,0.0003,30]
[360260350,1746671432364,-200.0,0.00019836,2]
[360260352,1746671432374,-250.0,0.0001986,2]
[360260354,1746671432384,-207.4,0.00019883,2]
[360260355,1746671432394,-209.57829293,0.00019891,2]
[360260356,1746671432404,-153.26355957,0.00019891,2]
[360260357,1746671432414,-1200.0,0.00019891,2]
[360260358,1746671432426,-2834.11475914,0.00019892,2]
[360260359,1746671432443,-2965.88524086,0.00019892,2]
[360260360,1746671432453,-450.0,0.00019895,2]
[360260361,1746671432462,-489.73080389,0.00019895,2]
[360260362,1746671432472,-450.0,0.00019895,2]
[360260363,1746671432482,-503.71654829,0.00019895,2]
[360260364,1746671432491,-450.0,0.00019895,2]
[360260365,1746671432501,-450.0,0.00019895,2]
[360260366,1746671432511,-498.74470969,0.00019895,2]
[360260367,1746671432521,-450.0,0.00019895,2]
[360260368,1746671432531,-450.0,0.00019895,2]
[360260369,1746671432540,-450.0,0.00019895,2]
[360260370,1746671432550,-450.0,0.00019895,2]
[360260371,1746671432560,-450.0,0.00019895,2]
[360260372,1746671432570,-450.0,0.00019895,2]
[360260373,1746671432581,-450.0,0.00019895,2]
[360260374,1746671432591,-450.0,0.00019895,2]
[360260375,1746671432601,-365.17069388,0.00019895,2]
[360260376,1746671432613,-84.82930612,0.00019895,2]
[360260377,1746671432623,-193.01242998,0.00019895,2]
[360260378,1746671432636,-256.98757002,0.00019895,2]
[360260379,1746671432646,-299.18242998,0.00019895,2]
[360260380,1746671432657,-150.81757002,0.00019895,2]
[360260381,1746671432667,-450.0,0.00019895,2]
[360260382,1746671432677,-450.0,0.00019895,2]
[360260383,1746671432686,-1326.11255909,0.00019899,2]
[360260384,1746671432696,-1326.11255907,0.00019899,2]
[360260385,1746671432706,-1326.11255907,0.00019899,2]
[360260386,1746671432715,-1326.11255907,0.00019899,2]
[360260387,1746671432724,-1326.11255907,0.00019899,2]
[360260388,1746671432733,-1326.11255907,0.000199,2]
[360260389,1746671432743,-1326.11255907,0.000199,2]
[360260391,1746671432753,-1326.11255907,0.000199,2]
[360260393,1746671432762,-1326.11255907,0.000199,2]
[360260394,1746671432772,-206.1407719,0.000199,2]
[360260395,1746671432781,-172.1431281,0.000199,2]
[360260396,1746671432791,-5800.0,0.000199,2]
[360260397,1746671432800,-3381.78411998,0.000199,2]
[360260398,1746671432811,-1326.11255907,0.000199,2]
[360260399,1746671432820,-173.12257491,0.000199,2]
[360260400,1746671432831,-353.79524444,0.000199,2]
[360260401,1746671432841,-435.40836234,0.000199,2]
[360260402,1746671432850,-182.06937468,0.000199,2]
[360260404,1746671432860,-4020.0,0.00019934,2]
[360260406,1746671432869,-5935.0,0.00019934,2]
[360260408,1746671432883,-502.23181819,0.00019973,2]
[360260410,1746671432892,-500.0,0.00019973,2]
[360260412,1746671432902,-500.0,0.00019973,2]
[360260414,1746671432911,-500.12400392,0.00019973,2]
[360260415,1746671432920,-504.96643662,0.00019973,2]
[360260416,1746671432930,-307.03430322,0.00019983,2]
[360260417,1746671432939,-235.30563113,0.00019985,2]
[360260418,1746671432949,-500.0,0.00019985,2]
[360260419,1746671432958,-500.0,0.00019985,2]
[360260420,1746671432968,-500.0,0.00019985,2]
[360260421,1746671432977,-500.0,0.00019985,2]
[360260422,1746671432987,-500.0,0.00019985,2]
[360260423,1746671432996,-553.16565021,0.00019985,2]
[360260424,1746671433005,-500.0,0.00019985,2]
[360260425,1746671433014,-500.0,0.00019985,2]
[360260426,1746671433024,-500.0,0.00019985,2]
[360260427,1746671433034,-3444.62926799,0.00019985,2]
[360260428,1746671433043,-450.0,0.00019985,2]
[360260429,1746671433052,-450.0,0.00019985,2]
[360260430,1746671433062,-486.27698633,0.00019985,2]
[360260431,1746671433071,-450.0,0.00019985,2]
[360260432,1746671433081,-232.36331689,0.00019985,2]
[360260433,1746671433091,-436.00634392,0.00019985,2]
[360260434,1746671433100,-1871.1720091,0.00019986,2]
[360260435,1746671433110,-2742.4048983,0.00019986,2]
[360260436,1746671433120,-36588.21395633,0.00019986,2]
[360260445,1746671438315,-500.48008372,0.00019986,2]
[360260447,1746671438371,-1153.45963817,0.00019986,2]
[360260448,1746671438480,-858.90282415,0.00019986,2]
[360260498,1746671440442,-6207.62277893,0.00019986,2]
[360260499,1746671440454,-1143.653,0.00019997,2]
[360260500,1746671440466,-387.94,0.00019997,2]
[360260501,1746671440479,-370.4,0.00019997,2]
[360260502,1746671440490,-192.64,0.00019997,2]
[360260503,1746671440502,-402.99153289,0.00019998,2]
[360260504,1746671440514,-450.0,0.00019998,2]
[360260505,1746671440528,-450.0,0.00019998,2]
[360260506,1746671440538,-529.87342741,0.00019998,2]
[360260507,1746671440548,-450.0,0.00019998,2]
[360260508,1746671440560,-450.0,0.00019998,2]
[360260509,1746671440570,-450.0,0.00019998,2]
[360260510,1746671440584,-450.0,0.00019998,2]
[360260511,1746671440598,-450.0,0.00019998,2]
[360260512,1746671440612,-450.0,0.00019998,2]
[360260513,1746671440628,-500.0,0.00019998,2]
[360260514,1746671440639,-450.0,0.00019998,2]
[360260515,1746671440649,-450.0,0.00019998,2]
[360260516,1746671440660,-450.0,0.00019998,2]
[360260517,1746671440670,-450.0,0.00019998,2]
[360260518,1746671440680,-450.0,0.00019998,2]
[360260519,1746671440692,-450.0,0.00019998,2]
[360260520,1746671440706,-450.0,0.00019998,2]
[360260521,1746671440718,-450.0,0.00019998,2]
[360260522,1746671440730,-450.0,0.00019998,2]
[360260523,1746671440742,-450.0,0.00019998,2]
[360260524,1746671440754,-450.0,0.00019998,2]
[360260525,1746671440765,-450.0,0.00019998,2]
[360260526,1746671440775,-450.0,0.00019998,2]
[360260527,1746671440786,-450.0,0.00019998,2]
[360260528,1746671440796,-576.32566539,0.00019998,2]
[360260529,1746671440807,-450.0,0.00019998,2]
[360260530,1746671440820,-450.0,0.00019998,2]
[360260531,1746671440831,-450.0,0.00019998,2]
[360260532,1746671440843,-450.0,0.00019998,2]
[360260533,1746671440859,-450.0,0.00019998,2]
[360260534,1746671440870,-121.82928163,0.00019998,2]
[360260535,1746671440884,-328.17071837,0.00019998,2]
[360260536,1746671440896,-60.81668202,0.00019998,2]
[360260537,1746671440911,-343.2526697,0.00019998,2]
[360260538,1746671440927,-45.93064828,0.00019998,2]
[360260539,1746671440940,-450.0,0.00019998,2]
[360260540,1746671440951,-450.0,0.00019998,2]
[360260541,1746671440966,-569.69174863,0.00019998,2]
[360260542,1746671440978,-450.0,0.00019998,2]
[360260544,1746671440989,-450.0,0.00019998,2]
[360260546,1746671441000,-450.0,0.00019998,2]
[360260548,1746671441011,-1989.11,0.00019998,2]
[360260550,1746671441022,-449.73085482,0.00019998,2]
[360260553,1746671441034,-555.96,0.00019998,2]
[360260555,1746671441045,-473.51292287,0.00019998,2]
[360260557,1746671441056,-466.6567458,0.00019998,2]
[360260559,1746671441067,-450.0,0.00019998,2]
[360260561,1746671441078,-450.0,0.00019998,2]
[360260563,1746671441090,-450.0,0.00019998,2]
[360260566,1746671441102,-450.0,0.00019998,2]
[360260568,1746671441114,-515.19473991,0.00019998,2]
[360260570,1746671441125,-450.0,0.00019998,2]
[360260572,1746671441136,-499.83388239,0.00019998,2]
[360260575,1746671441148,-450.0,0.00019998,2]
[360260577,1746671441160,-487.68830274,0.00019998,2]
[360260579,1746671441171,-450.0,0.00019998,2]
[360260581,1746671441182,-486.52732154,0.00019998,2]
[360260584,1746671441194,-450.0,0.00019998,2]
[360260586,1746671441204,-459.99539661,0.00019998,2]
[360260588,1746671441216,-557.83992413,0.00019998,2]
[360260590,1746671441227,-450.0,0.00019998,2]
[360260592,1746671441239,-450.0,0.00019998,2]
[360260595,1746671441250,-509.69251243,0.00019999,2]
[360260616,1746671441472,-490.30748757,0.00019999,2]
[360260618,1746671441484,-555.78010689,0.00019999,2]
[360260621,1746671441496,-208.22537543,0.00019999,2]
[360260623,1746671441507,-450.70064323,0.00019999,2]
[360260625,1746671441519,-552.85859149,0.00019999,2]
[360260628,1746671441531,-500.0,0.00019999,2]
[360260630,1746671441543,-450.0,0.00019999,2]
[360260632,1746671441555,-483.81638741,0.00019999,2]
[360260634,1746671441566,-271.54,0.00019999,2]
[360260636,1746671441578,-440.17,0.00019999,2]
[360260639,1746671441592,-450.0,0.00019999,2]
[360260641,1746671441603,-450.0,0.00019999,2]
[360260643,1746671441615,-500.0,0.00019999,2]
[360260645,1746671441626,-450.0,0.00019999,2]
[360260647,1746671441637,-450.0,0.00019999,2]
[360260649,1746671441648,-479.16796238,0.00019999,2]
[360260651,1746671441659,-450.0,0.00019999,2]
[360260654,1746671441670,-450.0,0.00019999,2]
[360260656,1746671441681,-544.56,0.00019999,2]
[360260659,1746671441707,-450.0,0.00019999,2]
[360260662,1746671441720,-450.0,0.00019999,2]
[360260664,1746671441733,-485.55432332,0.00019999,2]
[360260666,1746671441746,-262.47,0.00019999,2]
[360260669,1746671441760,-458.92501541,0.00019999,2]
[360260671,1746671441772,-471.22573971,0.00019999,2]
[360260673,1746671441785,-502.64,0.00019999,2]
[360260676,1746671441798,-419.27575419,0.00019999,2]
[360260678,1746671441811,-202.57712594,0.00019999,2]
[360260680,1746671441823,-450.0,0.00019999,2]
[360260683,1746671441838,-452.75969839,0.00019999,2]
[360260685,1746671441851,-450.0,0.00019999,2]
[360260687,1746671441864,-450.0,0.00019999,2]
[360260689,1746671441876,-450.0,0.00019999,2]
[360260692,1746671441888,-452.41689436,0.00019999,2]
[360260694,1746671441899,-278.1085551,0.00019999,2]
[360260696,1746671441911,-889.34,0.00019999,2]
[360260698,1746671441923,-889.34,0.00019999,2]
[360260701,1746671441934,-889.34,0.00019999,2]
[360260703,1746671441946,-889.34,0.00019999,2]
[360260705,1746671441957,-525.91965581,0.00019999,2]
[360260708,1746671441978,-363.42034419,0.00019999,2]
[360260710,1746671441989,-889.34,0.00019999,2]
[360260713,1746671442001,-889.34,0.00019999,2]
[360260715,1746671442013,-889.34,0.00019999,2]
[360260717,1746671442024,-889.34,0.00019999,2]
[360260719,1746671442035,-889.34,0.00019999,2]
[360260721,1746671442047,-889.34,0.00019999,2]
[360260724,1746671442059,-48.9892571,0.00019999,2]
[360260726,1746671442073,-840.3507429,0.00019999,2]
[360260728,1746671442084,-79.04743762,0.00019999,2]
[360260731,1746671442098,-810.29256238,0.00019999,2]
[360260733,1746671442115,-103.47122408,0.00019999,2]
[360260736,1746671442130,-764.745945,0.00019999,2]
[360260739,1746671442145,-21.12283092,0.00019999,2]
[360260741,1746671442157,-889.34,0.00019999,2]
[360260743,1746671442169,-146.23083596,0.00019999,2]
[360260810,1746671443553,-329.20743607,0.00019999,2]
[360260811,1746671443616,-413.90172797,0.00019999,2]
[360260812,1746671443629,-889.34,0.00019999,2]
[360260813,1746671443642,-889.34,0.00019999,2]
[360260814,1746671443655,-889.34,0.00019999,2]
[360260815,1746671443667,-889.34,0.00019999,2]
[360260816,1746671443678,-889.34,0.00019999,2]
[360260817,1746671443689,-889.34,0.00019999,2]
[360260818,1746671443700,-889.34,0.00019999,2]
[360260819,1746671443713,-889.5198954,0.00019999,2]
[360260820,1746671443725,-450.0,0.00019999,2]
[360260821,1746671443737,-450.0,0.00019999,2]
[360260822,1746671443751,-471.0,0.00019999,2]
[360260823,1746671443762,-450.0,0.00019999,2]
[360260824,1746671443773,-450.0,0.00019999,2]
[360260825,1746671443784,-450.0,0.00019999,2]
[360260826,1746671443795,-450.0,0.00019999,2]
[360260827,1746671443807,-242.14777644,0.00019999,2]
[360260828,1746671443818,-450.0,0.00019999,2]
[360260829,1746671443830,-450.0,0.00019999,2]
[360260830,1746671443843,-466.26999411,0.00019999,2]
[360260831,1746671443854,-450.0,0.00019999,2]
[360260832,1746671444180,-501.60279646,0.00019999,2]
[360260835,1746671444202,-457.46421184,0.00019999,2]
[360260836,1746671444219,-450.0,0.00019999,2]
[360260837,1746671444229,-262.63864882,0.00019999,2]
[360260838,1746671444239,-450.0,0.00019999,2]
[360260839,1746671444250,-450.0,0.00019999,2]
[360260840,1746671444261,-450.0,0.00019999,2]
[360260841,1746671444271,-195.99350957,0.00019999,2]
[360260842,1746671444282,-450.0,0.00019999,2]
[360260843,1746671444291,-450.0,0.00019999,2]
[360260844,1746671444302,-502.29502732,0.00019999,2]
[360260845,1746671444311,-450.0,0.00019999,2]
[360260846,1746671444320,-450.0,0.00019999,2]
[360260847,1746671444330,-450.0,0.00019999,2]
[360260848,1746671444341,-540.93293379,0.00019999,2]
[360260849,1746671444353,-582.98,0.00019999,2]
[360260850,1746671444364,-450.0,0.00019999,2]
[360260851,1746671444373,-450.0,0.00019999,2]
[360260852,1746671444383,-450.0,0.00019999,2]
[360260853,1746671444395,-505.96659849,0.00019999,2]
[360260854,1746671444406,-462.92736485,0.00019999,2]
[360260855,1746671444416,-1989.11,0.00019999,2]
[360260856,1746671444427,-1989.11,0.00019999,2]
[360260857,1746671444438,-1989.11,0.00019999,2]
[360260858,1746671444449,-1989.11,0.00019999,2]
[360260859,1746671444461,-1989.11,0.00019999,2]
[360260860,1746671444473,-1989.11,0.00019999,2]
[360260861,1746671444483,-1989.11,0.00019999,2]
[360260862,1746671444500,-1989.11,0.00019999,2]
[360260863,1746671444513,-1989.11,0.00019999,2]
[360260864,1746671444525,-1989.11,0.00019999,2]
[360260865,1746671444536,-1989.11,0.00019999,2]
[360260866,1746671444549,-1989.11,0.00019999,2]
[360260867,1746671444560,-1989.11,0.00019999,2]
[360260868,1746671444571,-1053.70438421,0.00019999,2]
[360260869,1746671444586,-910.2999,0.00019999,2]
[360260870,1746671444605,-25.10571579,0.00019999,2]
[360260871,1746671444616,-674.89428421,0.00019999,2]
[360260872,1746671444706,-1314.21571579,0.00019999,2]
[360260873,1746671444715,-1989.11,0.00019999,2]
[360260874,1746671444725,-1989.11,0.00019999,2]
[360260875,1746671444734,-1989.11,0.00019999,2]
[360260876,1746671444744,-1989.11,0.00019999,2]
[360260877,1746671444753,-1989.11,0.00019999,2]
[360260878,1746671444763,-1989.11,0.00019999,2]
[360260879,1746671444773,-1989.11,0.00019999,2]
[360260880,1746671444782,-1989.1905,0.00019999,2]
[360260881,1746671444792,-450.0,0.00019999,2]
[360260882,1746671444801,-450.0,0.00019999,2]
[360260883,1746671444813,-450.0,0.00019999,2]
[360260884,1746671444823,-214.77088132,0.00019999,2]
[360260885,1746671444833,-458.05,0.00019999,2]
[360260886,1746671444849,-450.0,0.00019999,2]
[360260887,1746671444859,-450.0,0.00019999,2]
[360260888,1746671444869,-450.0,0.00019999,2]
[360260889,1746671444880,-450.0,0.00019999,2]
[360260890,1746671444889,-450.0,0.00019999,2]
[360260891,1746671444899,-450.0,0.00019999,2]
[360260892,1746671444909,-450.0,0.00019999,2]
[360260893,1746671444919,-450.0,0.00019999,2]
[360260894,1746671444928,-227.93560125,0.00019999,2]
[360260895,1746671444938,-450.0,0.00019999,2]
[360260896,1746671444947,-450.0,0.00019999,2]
[360260897,1746671444969,-591.86913934,0.00019999,2]
[360260898,1746671444980,-284.07405573,0.00019999,2]
[360260899,1746671444990,-500.0,0.00019999,2]
[360260900,1746671445000,-500.0,0.00019999,2]
[360260901,1746671445010,-204.4350307,0.00019999,2]
[360260902,1746671445020,-500.0,0.00019999,2]
[360260903,1746671445030,-250.95531545,0.0002,2]
[360260904,1746671445040,-5985.98900996,0.0002,2]
[360260905,1746671445051,-313646.07563953,0.0002,2]
[360260908,1746671446354,-47352.93125225,0.0002,2]
[360260909,1746671446366,-464.84220954,0.0002,2]
[360260910,1746671446379,-1158.67535805,0.0002,2]
[360260911,1746671446407,-269.06663253,0.0002,2]
[360260912,1746671446464,-2397.10568078,0.0002,2]
[360260913,1746671446476,-1319.22692,0.0002,2]
[360260914,1746671446488,-7917.64319396,0.0002,2]
[360260915,1746671446521,-102552.07176755,0.0002,2]
[360260916,1746671446578,-5410.27679043,0.0002,2]
[360260917,1746671446593,-688.08525818,0.0002,2]
[360260918,1746671446606,-1873.14887,0.0002,2]
[360260919,1746671446619,-6561.53498233,0.0002,2]
[360260920,1746671446635,-897.40698998,0.0002,2]
[360260921,1746671446691,-619.76020313,0.0002,2]
[360260922,1746671446800,-1116.14335463,0.0002,2]
[360260924,1746671478865,150.112,0.0003,30]
[360260925,1746671487969,243.84339192,0.0002,23]
[360260968,1746671629972,300.0,0.0003,30]
[360260982,1746671779940,150.0,0.0003,30]
[360260984,1746671854912,2000.0,0.0003,120]
[360260986,1746671999054,150.0,0.00019291,7]
[360260987,1746672011269,196.43,0.00019254,2]
[360260988,1746672114125,161.84985546,0.0003,120]
[360260989,1746672118072,1077.08,0.00019175,2]
[360260990,1746672118094,1044.32,0.00019175,2]
[360260991,1746672136214,150.0,0.0003,30]
[360260992,1746672140668,370.9209291,0.00019998,6]
[360260993,1746672163478,500.0,0.00029589,30]
[360260994,1746672163730,500.0,0.00029863,30]
[360261037,1746672370137,250.0,0.00017,2]
[360261038,1746672371200,300.0,0.00019,2]
[360261040,1746672489435,157.6697666,0.0003,30]
[360261041,1746672493777,397.62,0.0001723,2]
[360261042,1746672493992,397.62,0.00019494,2]
[360261048,1746672623785,1000.0,0.00019185,2]
[360261058,1746672631557,-350.41188854,0.000197,2]
[360261059,1746672631567,-200.0,0.00019751,2]
[360261060,1746672631577,-200.0,0.00019801,2]
[360261061,1746672631587,-200.0,0.00019854,2]
[360261062,1746672631598,-307.4823,0.00019899,2]
[360261063,1746672631608,-197.10894301,0.00019899,2]
[360261064,1746672631618,-300.0,0.00019899,2]
[360261065,1746672631628,-1200.0,0.00019899,2]
[360261066,1746672631637,-172.14312808,0.000199,2]
[360261067,1746672631648,-420.0923385,0.000199,2]
[360261068,1746672631658,-781.13778288,0.000199,2]
[360261069,1746672631679,-3137.5940778,0.000199,2]
[360261070,1746672631691,-670.32616114,0.000199,2]
[360261071,1746672631701,-291.160215,0.00019966,2]
[360261072,1746672631711,-500.0,0.00019973,2]
[360261073,1746672631723,-391.25458349,0.00019973,2]
[360261074,1746672631737,-108.74541651,0.00019973,2]
[360261075,1746672631748,-207.4,0.00019974,2]
[360261076,1746672631758,-669.7726551,0.00019986,2]
[360261077,1746672631770,-4450.78613818,0.00019986,2]
[360261078,1746672631783,-494.7767235,0.00019986,2]
[360261079,1746672631795,-16117.18079602,0.00019986,2]
[360261080,1746672631805,-415.1268023,0.00019986,2]
[360261081,1746672631816,-3159.8479676,0.00019986,2]
[360261082,1746672631826,-151.0,0.00019987,2]
[360261084,1746672631836,-290.87,0.00019989,2]
[360261086,1746672631846,-290.87,0.0001999,2]
[360261088,1746672631856,-248.99,0.00019998,2]
[360261090,1746672631866,-315.66564025,0.00019998,2]
[360261093,1746672631876,-450.0,0.00019998,2]
[360261095,1746672631886,-248.5288195,0.00019998,2]
[360261097,1746672631896,-450.0,0.00019998,2]
[360261099,1746672631906,-450.0,0.00019998,2]
[360261100,1746672631915,-310.93152707,0.00019998,2]
[360261102,1746672631926,-469.56190166,0.00019998,2]
[360261103,1746672631935,-450.0,0.00019998,2]
[360261106,1746672631946,-914.922,0.00019998,2]
[360261107,1746672631957,-408.8178806,0.00019998,2]
[360261109,1746672631966,-450.0,0.00019998,2]
[360261111,1746672631976,-450.0,0.00019998,2]
[360261114,1746672631986,-450.0,0.00019998,2]
[360261116,1746672631995,-450.0,0.00019998,2]
[360261120,1746672632005,-254.79,0.00019998,2]
[360261123,1746672632014,-450.0,0.00019998,2]
[360261126,1746672632024,-248.29,0.00019998,2]
[360261129,1746672632034,-500.0,0.00019998,2]
[360261131,1746672632043,-450.0,0.00019998,2]
[360261133,1746672632054,-451.74569462,0.00019998,2]
[360261136,1746672632064,-450.0,0.00019998,2]
[360261138,1746672632074,-450.0,0.00019998,2]
[360261140,1746672632084,-477.06,0.00019998,2]
[360261143,1746672632103,-450.0,0.00019998,2]
[360261146,1746672632122,-450.0,0.00019998,2]
[360261147,1746672632139,-450.0,0.00019998,2]
[360261148,1746672632154,-450.0,0.00019998,2]
[360261149,1746672632167,-450.0,0.00019998,2]
[360261150,1746672632182,-450.0,0.00019998,2]
[360261151,1746672632193,-450.0,0.00019998,2]
[360261152,1746672632205,-450.0,0.00019998,2]
[360261153,1746672632218,-500.0,0.00019998,2]
[360261154,1746672632231,-492.4,0.00019998,2]
[360261155,1746672632244,-450.0,0.00019998,2]
[360261156,1746672632257,-450.0,0.00019998,2]
[360261157,1746672632269,-450.0,0.00019998,2]
[360261158,1746672632281,-21651.85268852,0.00019998,2]
[360261159,1746672632293,-450.0,0.00019998,2]
[360261160,1746672632306,-450.0,0.00019998,2]
[360261161,1746672632320,-450.0,0.00019998,2]
[360261162,1746672632333,-450.0,0.00019998,2]
[360261163,1746672632346,-450.0,0.00019998,2]
[360261164,1746672632359,-773.51,0.00019998,2]
[360261165,1746672632372,-450.0,0.00019998,2]
[360261166,1746672632384,-500.0,0.00019998,2]
[360261167,1746672632395,-450.0,0.00019998,2]
[360261168,1746672632406,-500.0,0.00019998,2]
[360261169,1746672632418,-500.0,0.00019998,2]
[360261170,1746672632431,-500.0,0.00019998,2]
[360261171,1746672632445,-500.0,0.00019998,2]
[360261172,1746672632460,-500.0,0.00019998,2]
[360261173,1746672632473,-500.0,0.00019998,2]
[360261174,1746672632486,-500.0,0.00019998,2]
[360261175,1746672632499,-500.0,0.00019998,2]
[360261176,1746672632512,-500.0,0.00019998,2]
[360261177,1746672632529,-500.0,0.00019998,2]
[360261178,1746672632543,-500.0,0.00019998,2]
[360261179,1746672632556,-500.0,0.00019998,2]
[360261180,1746672632569,-500.0,0.00019998,2]
[360261181,1746672632582,-500.0,0.00019998,2]
[360261182,1746672632595,-500.0,0.00019998,2]
[360261183,1746672632608,-500.0,0.00019998,2]
[360261184,1746672632620,-500.0,0.00019998,2]
[360261185,1746672632633,-450.0,0.00019998,2]
[360261186,1746672632647,-500.0,0.00019998,2]
[360261187,1746672632659,-500.0,0.00019998,2]
[360261188,1746672632673,-500.0,0.00019998,2]
[360261189,1746672632686,-621.16901932,0.00019998,2]
[360261190,1746672632698,-500.0,0.00019998,2]
[360261191,1746672632711,-450.0,0.00019998,2]
[360261192,1746672632725,-450.0,0.00019998,2]
[360261193,1746672632736,-450.0,0.00019998,2]
[360261194,1746672632748,-500.0,0.00019998,2]
[360261195,1746672632759,-500.0,0.00019998,2]
[360261196,1746672632772,-450.0,0.00019998,2]
[360261197,1746672632784,-450.0,0.00019998,2]
[360261198,1746672632797,-450.0,0.00019998,2]
[360261199,1746672632816,-450.0,0.00019998,2]
[360261200,1746672632828,-500.0,0.00019998,2]
[360261201,1746672632842,-500.0,0.00019998,2]
[360261202,1746672632854,-500.0,0.00019998,2]
[360261203,1746672632867,-500.0,0.00019998,2]
[360261204,1746672632880,-500.0,0.00019998,2]
[360261205,1746672632891,-500.0,0.00019998,2]